fUSD/lending_fUSD_20240216
["ID","MTS","AMOUNT","RATE_DAILY","PERIOD"]
[314256704,1708119160208,-500.0,0.00052876,60]
[314256705,1708119160222,-500.0,0.00052876,60]
[314256706,1708119160236,-500.0,0.00052876,60]
[314256707,1708119160250,-500.0,0.00052876,60]
[314256708,1708119160264,-500.0,0.00052876,60]
[314256709,1708119160278,-500.0,0.00052876,60]
[314256710,1708119160292,-549.14,0.00052876,60]
[314256711,1708119160305,-500.0,0.00052876,60]
[314256712,1708119160320,-500.0,0.00052876,60]
[314256713,1708119160334,-953.91,0.00052876,60]
[314256714,1708119160348,-333.34,0.00052876,60]
[314256715,1708119160362,-713.03,0.00052876,60]
[314256716,1708119160377,-294.94,0.00052876,60]
[314256717,1708119160391,-639.89,0.00052876,60]
[314256718,1708119160405,-500.0,0.00052876,60]
[314256719,1708119160419,-510.16,0.00052876,60]
[314256720,1708119160433,-500.0,0.00052876,60]
[314256721,1708119160448,-580.88,0.00052876,60]
[314256722,1708119160461,-289.74,0.00052876,60]
[314256723,1708119160477,-500.0,0.00052876,60]
[314256724,1708119160491,-500.0,0.00052876,60]
[314256725,1708119160505,-555.94,0.00052876,60]
[314256726,1708119160518,-572.13,0.00052876,60]
[314256727,1708119160533,-570.46,0.00052876,60]
[314256728,1708119160547,-551.75,0.00052876,60]
[314256729,1708119160561,-500.0,0.00052876,60]
[314256730,1708119160575,-500.0,0.00052876,60]
[314256731,1708119160590,-500.0,0.00052876,60]
[314256732,1708119160604,-500.0,0.00052876,60]
[314256733,1708119160619,-616.49,0.00052876,60]
[314256734,1708119160634,-500.0,0.00052876,60]
[314256735,1708119160648,-500.0,0.00052876,60]
[314256736,1708119160662,-569.39,0.00052876,60]
[314256737,1708119160677,-500.0,0.00052876,60]
[314256738,1708119160692,-614.71,0.00052876,60]
[314256739,1708119160711,-500.0,0.00052876,60]
[314256740,1708119160726,-500.0,0.00052876,60]
[314256741,1708119160740,-500.0,0.00052876,60]
[314256742,1708119160754,-2236.49,0.00052876,60]
[314256743,1708119161092,-869.27,0.00052876,60]
[314256744,1708119161112,-679.72,0.00052876,60]
[314256745,1708119161122,-514.97,0.00052876,60]
[314256746,1708119161131,-745.29,0.00052876,60]
[314256747,1708119161141,-500.0,0.00052876,60]
[314256748,1708119161150,-597.04,0.00052876,60]
[314256749,1708119161160,-647.43,0.00052876,60]
[314256750,1708119161169,-541.75,0.00052876,60]
[314256751,1708119161179,-369.88,0.00052876,60]
[314256752,1708119161188,-500.0,0.00052876,60]
[314256753,1708119161198,-500.0,0.00052876,60]
[314256754,1708119161207,-1088.61,0.00052876,2]
[314256755,1708119161216,-500.0,0.00052876,60]
[314256756,1708119161225,-500.0,0.00052876,60]
[314256757,1708119161234,-500.0,0.00052876,60]
[314256758,1708119161244,-500.0,0.00052876,60]
[314256759,1708119161255,-500.0,0.00052876,60]
[314256760,1708119161264,-568.01,0.00052876,60]
[314256761,1708119161274,-581.86,0.00052876,60]
[314256762,1708119161283,-500.0,0.00052876,60]
[314256763,1708119161292,-500.0,0.00052876,60]
[314256764,1708119161302,-792.04,0.00052876,60]
[314256765,1708119161311,-500.0,0.00052876,60]
[314256766,1708119161320,-500.0,0.00052876,60]
[314256767,1708119161330,-500.0,0.00052876,60]
[314256768,1708119161339,-500.0,0.00052876,60]
[314256769,1708119161348,-574.86,0.00052876,60]
[314256770,1708119161358,-724.01,0.00052876,60]
[314256771,1708119161368,-500.0,0.00052876,60]
[314256772,1708119161377,-500.0,0.00052876,60]
[314256773,1708119161387,-500.0,0.00052876,60]
[314256774,1708119161397,-179.15,0.00052876,60]
[314256775,1708119161406,-574.15,0.00052876,60]
[314256776,1708119161415,-617.63,0.00052876,60]
[314256777,1708119161425,-1173.51,0.00052876,7]
[314256778,1708119161435,-604.06,0.00052876,60]
[314256779,1708119161444,-500.0,0.00052876,60]
[314256780,1708119161453,-500.0,0.00052876,60]
[314256781,1708119161463,-541.23309654,0.00052876,60]
[314256782,1708119161474,-511.02,0.00052876,60]
[314256783,1708119161483,-840.32,0.00052876,2]
[314256784,1708119161492,-500.0,0.00052876,60]
[314256785,1708119161502,-551.0,0.00052876,60]
[314256786,1708119161512,-2031.12,0.00052876,2]
[314256787,1708119161522,-500.0,0.00052876,60]
[314256788,1708119161531,-500.0,0.00052876,60]
[314256789,1708119161541,-500.0,0.00052876,60]
[314256790,1708119161550,-608.56,0.00052876,60]
[314256791,1708119161560,-542.29,0.00052876,60]
[314256792,1708119161569,-500.0,0.00052876,60]
[314256793,1708119161579,-500.0,0.00052876,60]
[314256794,1708119161589,-639.13,0.00052876,60]
[314256795,1708119161599,-500.0,0.00052876,60]
[314256796,1708119161609,-500.0,0.00052876,60]
[314256797,1708119161618,-662.34,0.00052876,60]
[314256798,1708119161628,-500.0,0.00052876,60]
[314256799,1708119161637,-500.0,0.00052876,60]
[314256800,1708119161647,-500.0,0.00052876,60]
[314256801,1708119161656,-725.97,0.00052876,60]
[314256802,1708119161666,-500.0,0.00052876,60]
[314256803,1708119161675,-862.39,0.00052876,60]
[314256804,1708119161684,-500.0,0.00052876,60]
[314256805,1708119161694,-500.0,0.00052876,60]
[314256806,1708119161703,-500.0,0.00052876,60]
[314256807,1708119161713,-500.0,0.00052876,60]
[314256808,1708119161722,-500.0,0.00052876,60]
[314256809,1708119161731,-693.28,0.00052876,60]
[314256810,1708119161741,-500.0,0.00052876,60]
[314256811,1708119161750,-703.48,0.00052876,60]
[314256812,1708119161762,-566.58,0.00052876,60]
[314256813,1708119161771,-500.0,0.00052876,60]
[314256814,1708119161780,-500.0,0.00052876,60]
[314256815,1708119161790,-500.0,0.00052876,60]
[314256816,1708119161799,-1032.17,0.00052876,60]
[314256817,1708119161808,-536.17,0.00052876,60]
[314256818,1708119161818,-986.8,0.00052876,60]
[314256819,1708119161827,-500.0,0.00052876,60]
[314256820,1708119161836,-782.04,0.00052876,60]
[314256821,1708119161846,-539.44,0.00052876,60]
[314256822,1708119161855,-500.0,0.00052876,60]
[314256823,1708119161864,-500.94,0.00052876,60]
[314256824,1708119161873,-500.0,0.00052876,60]
[314256825,1708119161883,-524.47292361,0.00052876,60]
[314256826,1708119161892,-708.38,0.00052876,60]
[314256827,1708119161901,-500.0,0.00052876,60]
[314256828,1708119161911,-515.61,0.00052876,60]
[314256829,1708119161920,-578.51,0.00052876,60]
[314256830,1708119161933,-557.42,0.00052876,60]
[314256831,1708119161943,-512.6,0.00052876,60]
[314256832,1708119161953,-587.0,0.00052876,60]
[314256833,1708119161962,-500.0,0.00052876,60]
[314256834,1708119161973,-940.09,0.00052876,60]
[314256835,1708119161983,-500.0,0.00052876,60]
[314256836,1708119161992,-500.0,0.00052876,60]
[314256837,1708119162002,-500.0,0.00052876,60]
[314256838,1708119162014,-500.0,0.00052876,60]
[314256839,1708119162024,-816.62,0.00052876,60]
[314256840,1708119162034,-500.0,0.00052876,60]
[314256841,1708119162047,-607.94,0.00052876,60]
[314256842,1708119162086,-642.11,0.00052876,60]
[314256843,1708119162096,-206.29264595,0.00052876,60]
[314256844,1708119162105,-500.0,0.00052876,60]
[314256845,1708119162115,-1167.88,0.00052876,60]
[314256846,1708119162125,-500.0,0.00052876,60]
[314256847,1708119162134,-851.65,0.00052876,60]
[314256848,1708119162144,-644.36,0.00052876,60]
[314256849,1708119162153,-500.0,0.00052876,60]
[314256850,1708119162162,-2216.52,0.00052876,60]
[314256851,1708119162172,-500.0,0.00052876,60]
[314256852,1708119162181,-500.0,0.00052876,60]
[314256853,1708119162191,-500.0,0.00052876,60]
[314256854,1708119162200,-500.0,0.00052876,60]
[314256855,1708119162209,-500.0,0.00052876,60]
[314256856,1708119162218,-694.71,0.00052876,60]
[314256857,1708119162228,-2871.6,0.00052876,60]
[314256858,1708119162237,-500.0,0.00052876,60]
[314256859,1708119162246,-500.0,0.00052876,60]
[314256860,1708119162256,-500.0,0.00052876,60]
[314256861,1708119162266,-562.06,0.00052876,60]
[314256862,1708119162275,-500.0,0.00052876,60]
[314256863,1708119162285,-589.85,0.00052876,60]
[314256864,1708119162294,-1083.11,0.00052876,60]
[314256865,1708119162304,-500.0,0.00052876,60]
[314256866,1708119162313,-2574.8,0.00052876,60]
[314256867,1708119162322,-500.0,0.00052876,60]
[314256868,1708119162331,-500.0,0.00052876,60]
[314256869,1708119162340,-500.0,0.00052876,60]
[314256870,1708119162349,-500.0,0.00052876,60]
[314256871,1708119162359,-890.17,0.00052876,60]
[314256872,1708119162368,-1244.45,0.00052876,60]
[314256873,1708119162378,-500.0,0.00052876,60]
[314256874,1708119162387,-588.9,0.00052876,60]
[314256875,1708119162396,-1983.03,0.00052876,60]
[314256876,1708119162406,-500.0,0.00052876,60]
[314256877,1708119162415,-597.0,0.00052876,60]
[314256878,1708119162424,-500.0,0.00052876,60]
[314256879,1708119162434,-1068.84,0.00052876,60]
[314256880,1708119162443,-742.37,0.00052876,60]
[314256881,1708119162452,-803.55,0.00052876,60]
[314256882,1708119162462,-4400.67,0.00052876,60]
[314256883,1708119162471,-821.93,0.00052876,60]
[314256884,1708119162480,-538.03,0.00052876,60]
[314256885,1708119162490,-500.0,0.00052876,60]
[314256886,1708119162499,-500.0,0.00052876,60]
[314256887,1708119162509,-3625.09,0.00052876,60]
[314256888,1708119162519,-500.0,0.00052876,60]
[314256889,1708119162529,-964.44,0.00052876,60]
[314256890,1708119162539,-1492.92,0.00052876,60]
[314256891,1708119162548,-2046.77,0.00052876,60]
[314256892,1708119162558,-500.0,0.00052876,60]
[314256893,1708119162567,-802.5,0.00052876,60]
[314256894,1708119162576,-610.16,0.00052876,60]
[314256895,1708119162586,-500.0,0.00052876,60]
[314256896,1708119162596,-1066.34,0.00052876,60]
[314256897,1708119162605,-500.0,0.00052876,60]
[314256898,1708119162615,-797.01,0.00052876,60]
[314256899,1708119162624,-500.0,0.00052876,60]
[314256900,1708119162633,-598.7,0.00052876,60]
[314256901,1708119162642,-3199.37,0.00052876,60]
[314256902,1708119162652,-729.2,0.00052876,60]
[314256903,1708119162661,-500.0,0.00052876,60]
[314256904,1708119162670,-500.0,0.00052876,60]
[314256905,1708119162679,-24352.15,0.00052876,60]
[314256906,1708119162689,-1397.78,0.00052876,60]
[314256907,1708119162698,-500.0,0.00052876,60]
[314256908,1708119162707,-500.0,0.00052876,60]
[314256909,1708119162716,-2225.09,0.00052876,60]
[314256910,1708119162725,-500.0,0.00052876,60]
[314256911,1708119162735,-3059.93,0.00052876,60]
[314256912,1708119162744,-663.32,0.00052876,60]
[314256913,1708119162754,-559.03,0.00052876,60]
[314256914,1708119162763,-565.36358067,0.00052876,60]
[314256915,1708119162772,-500.0,0.00052876,60]
[314256916,1708119162781,-3189.76,0.00052876,60]
[314256917,1708119162791,-2572.92,0.00052876,60]
[314256918,1708119162800,-1075.21,0.00052876,60]
[314256919,1708119162809,-500.0,0.00052876,60]
[314256920,1708119162818,-500.0,0.00052876,60]
[314256921,1708119162828,-4525.95,0.00052876,60]
[314256922,1708119162837,-500.0,0.00052876,60]
[314256923,1708119162846,-648.82,0.00052876,60]
[314256924,1708119162855,-5354.43,0.00052876,60]
[314256925,1708119162865,-703.45,0.00052876,60]
[314256926,1708119162874,-1211.83,0.00052876,60]
[314256927,1708119162883,-871.55,0.00052876,60]
[314256928,1708119162892,-609.42,0.00052876,60]
[314256929,1708119162901,-1231.04,0.00052876,60]
[314256930,1708119162911,-737.52,0.00052876,60]
[314256931,1708119162922,-591.52,0.00052876,60]
[314256932,1708119162936,-719.76,0.00052876,60]
[314256933,1708119162945,-2765.99,0.00052876,60]
[314256934,1708119162955,-500.0,0.00052876,60]
[314256935,1708119162965,-1575.91,0.00052876,60]
[314256936,1708119162975,-500.0,0.00052876,60]
[314256937,1708119162984,-500.0,0.00052876,60]
[314256938,1708119162994,-868.38,0.00052876,60]
[314256939,1708119163004,-9546.8,0.00052876,60]
[314256940,1708119163013,-2411.87,0.00052876,60]
[314256941,1708119163022,-606.97,0.00052876,60]
[314256942,1708119163031,-500.0,0.00052876,60]
[314256943,1708119163040,-570.56,0.00052876,60]
[314256944,1708119163050,-500.0,0.00052876,60]
[314256945,1708119163059,-1028.79,0.00052876,60]
[314256946,1708119163069,-500.0,0.00052876,60]
[314256947,1708119163078,-1081.67,0.00052876,60]
[314256948,1708119163088,-500.0,0.00052876,60]
[314256949,1708119163098,-500.0,0.00052876,60]
[314256950,1708119163107,-8340.13,0.00052876,60]
[314256951,1708119163116,-500.0,0.00052876,60]
[314256952,1708119163125,-500.0,0.00052876,60]
[314256953,1708119163134,-6395.6,0.00052876,14]
[314256954,1708119163144,-317.99304182,0.00052876,60]
[314256955,1708119163153,-500.0,0.00052876,60]
[314256956,1708119163163,-500.0,0.00052876,60]
[314256957,1708119163172,-500.0,0.00052876,60]
[314256958,1708119163181,-2287.27,0.00052876,60]
[314256959,1708119163191,-222.09077884,0.00052876,60]
[314256960,1708119163200,-542.74,0.00052876,60]
[314256961,1708119163209,-500.0,0.00052876,60]
[314256962,1708119163219,-1517.81,0.00052876,60]
[314256963,1708119163228,-520.3,0.00052876,60]
[314256964,1708119163238,-7477.21,0.00052876,60]
[314256965,1708119163247,-500.0,0.00052876,60]
[314256966,1708119163256,-714.64,0.00052876,60]
[314256967,1708119163266,-630.12,0.00052876,60]
[314256968,1708119163275,-500.0,0.00052876,60]
[314256969,1708119163284,-722.94,0.00052876,60]
[314256970,1708119163293,-910.24,0.00052876,60]
[314256971,1708119163302,-3306.89,0.00052876,60]
[314256972,1708119163311,-544.82,0.00052876,60]
[314256973,1708119163320,-5810.7,0.00052876,60]
[314256974,1708119163329,-2333.25,0.00052876,60]
[314256975,1708119163338,-1821.43,0.00052876,60]
[314256976,1708119163348,-500.0,0.00052876,60]
[314256977,1708119163356,-500.0,0.00052876,60]
[314256978,1708119163366,-1107.39,0.00052876,60]
[314256979,1708119163375,-3684.25,0.00052876,60]
[314256980,1708119163384,-500.0,0.00052876,60]
[314256981,1708119163393,-583.02,0.00052876,60]
[314256982,1708119163402,-500.0,0.00052876,60]
[314256983,1708119163411,-673.09,0.00052876,60]
[314256984,1708119163420,-500.0,0.00052876,60]
[314256985,1708119163429,-500.0,0.00052876,60]
[314256986,1708119163439,-530.67,0.00052876,60]
[314256987,1708119163448,-500.0,0.00052876,60]
[314256988,1708119163457,-868.96,0.00052876,60]
[314256989,1708119163466,-500.0,0.00052876,60]
[314256990,1708119163475,-500.0,0.00052876,60]
[314256991,1708119163485,-688.48,0.00052876,60]
[314256992,1708119163494,-2624.63,0.00052876,60]
[314256993,1708119163503,-500.0,0.00052876,60]
[314256994,1708119163513,-548.0,0.00052876,60]
[314256995,1708119163522,-842.25,0.00052876,60]
[314256996,1708119163531,-905.88,0.00052876,60]
[314256997,1708119163540,-1344.54,0.00052876,60]
[314256998,1708119163550,-500.0,0.00052876,60]
[314256999,1708119163559,-842.36,0.00052876,2]
[314257000,1708119163569,-2942.14,0.00052876,60]
[314257001,1708119163578,-505.82,0.00052876,60]
[314257002,1708119163589,-2570.64,0.00052876,60]
[314257003,1708119163598,-500.0,0.00052876,60]
[314257004,1708119163608,-2688.02,0.00052876,60]
[314257005,1708119163618,-2260.09,0.00052876,60]
[314257006,1708119163628,-500.0,0.00052876,60]
[314257007,1708119163637,-716.26,0.00052876,60]
[314257008,1708119163646,-924.33,0.00052876,60]
[314257009,1708119163656,-657.39,0.00052876,60]
[314257010,1708119163666,-2023.51,0.00052876,60]
[314257011,1708119163675,-1625.46,0.00052876,60]
[314257012,1708119163684,-506.3,0.00052876,60]
[314257013,1708119163694,-500.0,0.00052876,60]
[314257014,1708119163703,-953.19,0.00052876,60]
[314257015,1708119163713,-500.0,0.00052876,60]
[314257016,1708119163722,-680.83,0.00052876,60]
[314257017,1708119163731,-1719.81,0.00052876,60]
[314257018,1708119163741,-586.01,0.00052876,60]
[314257019,1708119163750,-582.82,0.00052876,60]
[314257020,1708119163759,-562.1,0.00052876,60]
[314257021,1708119163768,-659.84,0.00052876,60]
[314257022,1708119163778,-4202.04,0.00052876,60]
[314257023,1708119163787,-7068.33,0.00052876,60]
[314257024,1708119163797,-500.0,0.00052876,60]
[314257025,1708119163807,-500.0,0.00052876,60]
[314257026,1708119163817,-188.88105382,0.00052876,60]
[314257027,1708119163826,-2643.96,0.00052876,60]
[314257028,1708119163835,-500.0,0.00052876,60]
[314257029,1708119163844,-412.26,0.00052876,60]
[314257030,1708119163853,-1183.13,0.00052876,60]
[314257031,1708119163862,-1949.14,0.00052876,60]
[314257032,1708119163871,-566.21,0.00052876,60]
[314257033,1708119163881,-1927.89,0.00052876,60]
[314257034,1708119163890,-500.0,0.00052876,60]
[314257035,1708119163900,-699.96,0.00052876,60]
[314257036,1708119163909,-500.0,0.00052876,60]
[314257037,1708119163919,-3348.01,0.00052876,60]
[314257038,1708119163931,-500.0,0.00052876,60]
[314257039,1708119163940,-1200.81,0.00052876,60]
[314257040,1708119163949,-1872.95,0.00052876,60]
[314257041,1708119163959,-529.58,0.00052876,60]
[314257042,1708119163969,-716.71,0.00052876,60]
[314257043,1708119163979,-693.17,0.00052876,60]
[314257044,1708119163988,-500.0,0.00052876,60]
[314257045,1708119163998,-1099.89,0.00052876,60]
[314257046,1708119164010,-500.0,0.00052876,60]
[314257047,1708119164020,-552.07,0.00052876,60]
[314257048,1708119164029,-596.9,0.00052876,60]
[314257049,1708119164038,-1791.39,0.00052876,60]
[314257050,1708119164048,-522.23822649,0.00052876,60]
[314257051,1708119164057,-573.51,0.00052876,60]
[314257052,1708119164066,-777.88,0.00052876,60]
[314257053,1708119164075,-1055.53,0.00052876,60]
[314257054,1708119164084,-500.0,0.00052876,60]
[314257055,1708119164094,-722.67,0.00052876,60]
[314257056,1708119164103,-1887.23,0.00052876,60]
[314257057,1708119164113,-500.0,0.00052876,60]
[314257058,1708119164123,-674.89,0.00052876,60]
[314257059,1708119164132,-2198.11,0.00052876,60]
[314257060,1708119164141,-8115.72,0.00052876,60]
[314257061,1708119164151,-701.75,0.00052876,60]
[314257062,1708119164160,-500.0,0.00052876,60]
[314257063,1708119164169,-779.02,0.00052876,60]
[314257064,1708119164178,-240.09,0.00052876,60]
[314257065,1708119164187,-1002.39,0.00052876,60]
[314257066,1708119164197,-500.0,0.00052876,60]
[314257067,1708119164207,-1272.04,0.00052876,60]
[314257068,1708119164216,-1115.22,0.00052876,60]
[314257069,1708119164225,-505.42,0.00052876,60]
[314257070,1708119164436,-3301.31,0.00052876,60]
[314257071,1708119164446,-626.52,0.00052876,60]
[314257072,1708119164456,-500.0,0.00052876,60]
[314257073,1708119164466,-500.0,0.00052876,60]
[314257074,1708119164475,-500.0,0.00052876,60]
[314257075,1708119164485,-1972.92,0.00052876,60]
[314257076,1708119164494,-500.0,0.00052876,60]
[314257077,1708119164503,-991.91,0.00052876,60]
[314257078,1708119164515,-914.46,0.00052876,60]
[314257079,1708119164523,-500.0,0.00052876,60]
[314257080,1708119164532,-536.93,0.00052876,60]
[314257081,1708119164541,-500.0,0.00052876,60]
[314257082,1708119164550,-500.0,0.00052876,60]
[314257083,1708119164559,-6230.0,0.00052879,61]
[314257084,1708119164568,-6230.0,0.0005288,61]
[314257085,1708119164578,-5000.0,0.00052885,90]
[314257086,1708119164587,-200.0,0.00052887,77]
[314257087,1708119164597,-200.0,0.00052887,75]
[314257088,1708119164606,-200.0,0.00052887,73]
[314257089,1708119164616,-6230.0,0.00052889,61]
[314257090,1708119164625,-6230.0,0.0005289,61]
[314257091,1708119164635,-613.22563516,0.000529,60]
[314257092,1708119164644,-200.0,0.000529,29]
[314257093,1708119164653,-10000.0,0.000529,120]
[314257094,1708119164663,-468851.15478433,0.000529,30]
[314257095,1708119164673,-1215.21477264,0.000529,30]
[314257096,1708119164682,-3275.74413599,0.000529,30]
[314257097,1708119164692,-149999.0,0.000529,30]
[314257098,1708119164701,-149725.3500283,0.000529,30]
[314257099,1708119164710,-311.0,0.00052903,120]
[314257100,1708119164719,-500.0,0.00052968,120]
[314257101,1708119164729,-100000.0,0.00053,43]
[314257102,1708119164738,-560.01167568,0.00053,120]
[314257103,1708119164747,-140699.95704685,0.00053,30]
[314257104,1708119164757,-11605.62769809,0.00053,5]
[314257105,1708119164766,-8944.58063098,0.00053,5]
[314257106,1708119164775,-300.0,0.00053,53]
[314257107,1708119164785,-5000.0,0.00053,62]
[314257108,1708119164794,-3000.0,0.00053,47]
[314257109,1708119164803,-566.22524988,0.00053,2]
[314257110,1708119164812,-1541.61818153,0.00053,30]
[314257111,1708119164822,-5000.0,0.00053,60]
[314257112,1708119164831,-230.29,0.00053,10]
[314257113,1708119164841,-11578.0,0.00053,120]
[314257114,1708119164850,-100000.0,0.00053,120]
[314257115,1708119164859,-40000.0,0.00053,120]
[314257116,1708119164869,-5000.0,0.00053,60]
[314257117,1708119164878,-159.09,0.00053,120]
[314257118,1708119164887,-10000.0,0.00053,90]
[314257119,1708119164896,-500.0,0.00053,20]
[314257120,1708119164906,-300.0,0.00053,54]
[314257121,1708119164915,-7926.29520855,0.00053,120]
[314257122,1708119164928,-500.0,0.00053,7]
[314257123,1708119164937,-500.0,0.00053,7]
[314257124,1708119164947,-150.0,0.00053,31]
[314257125,1708119164957,-150.0,0.00053,30]
[314257126,1708119164967,-446.86408125,0.00053003,30]
[314257127,1708119164976,-182.46208837,0.00053003,30]
[314257128,1708119164985,-288.21600538,0.00053003,30]
[314257129,1708119164995,-332.83372129,0.00053003,30]
[314257130,1708119165005,-325.64438562,0.00053003,30]
[314257131,1708119165017,-152.72220558,0.00053016,56]
[314257132,1708119165027,-150.95,0.00053108,2]
[314257133,1708119165036,-525.021,0.00053137,120]
[314257134,1708119165046,-315.577,0.00053137,120]
[314257135,1708119165055,-163.483,0.00053137,120]
[314257136,1708119165064,-2871.0,0.00053137,120]
[314257137,1708119165073,-8164.0,0.00053137,120]
[314257138,1708119165083,-821.978,0.00053137,120]
[314257139,1708119165092,-2699.277,0.00053137,120]
[314257140,1708119165102,-4098.0,0.00053137,120]
[314257141,1708119165111,-19846.0,0.00053137,120]
[314257142,1708119165122,-838.0,0.00053137,2]
[314257143,1708119165131,-950.0,0.00053137,120]
[314257144,1708119165141,-272.88,0.0005315,60]
[314257145,1708119165151,-500.0,0.0005315,60]
[314257146,1708119165160,-500.0,0.0005315,60]
[314257147,1708119165170,-321.46,0.0005315,60]
[314257148,1708119165180,-579.12049234,0.0005315,60]
[314257149,1708119165189,-500.0,0.0005315,60]
[314257150,1708119165199,-500.0,0.0005315,60]
[314257151,1708119165209,-500.0,0.0005315,60]
[314257152,1708119165219,-404.32,0.0005315,60]
[314257153,1708119165228,-500.0,0.0005315,60]
[314257154,1708119165239,-500.0,0.0005315,60]
[314257155,1708119165249,-500.0,0.0005315,60]
[314257156,1708119165259,-500.0,0.0005315,60]
[314257157,1708119165268,-500.0,0.0005315,60]
[314257158,1708119165278,-500.0,0.0005315,60]
[314257159,1708119165288,-500.0,0.0005315,60]
[314257160,1708119165296,-500.0,0.0005315,60]
[314257161,1708119165307,-500.0,0.0005315,60]
[314257162,1708119165316,-500.0,0.0005315,60]
[314257163,1708119165326,-500.0,0.0005315,60]
[314257164,1708119165335,-1000.0,0.0005315,120]
[314257165,1708119165345,-664.54,0.0005315,30]
[314257166,1708119165354,-500.0,0.0005315,60]
[314257167,1708119165364,-568.05,0.0005315,2]
[314257168,1708119165374,-250.18,0.0005315,60]
[314257169,1708119165383,-500.0,0.0005315,60]
[314257170,1708119165393,-500.0,0.0005315,60]
[314257171,1708119165402,-500.0,0.0005315,60]
[314257172,1708119165412,-500.0,0.0005315,60]
[314257173,1708119165422,-500.0,0.0005315,60]
[314257174,1708119165431,-500.0,0.0005315,60]
[314257175,1708119165440,-500.0,0.0005315,60]
[314257176,1708119165449,-205.53352607,0.0005315,60]
[314257177,1708119165459,-156.45,0.0005315,60]
[314257178,1708119165468,-500.0,0.0005315,60]
[314257179,1708119165478,-567.19868294,0.0005315,60]
[314257180,1708119165488,-631.37,0.0005315,60]
[314257181,1708119165497,-527.55,0.0005315,60]
[314257182,1708119165506,-413.7,0.0005315,60]
[314257183,1708119165517,-192.30347212,0.0005315,60]
[314257184,1708119165527,-500.0,0.0005315,60]
[314257185,1708119165537,-500.0,0.0005315,60]
[314257186,1708119165546,-500.0,0.0005315,60]
[314257187,1708119165555,-549.14,0.0005315,60]
[314257188,1708119165565,-500.0,0.0005315,60]
[314257189,1708119165574,-500.0,0.0005315,60]
[314257190,1708119165584,-953.91,0.0005315,60]
[314257191,1708119165595,-713.03,0.0005315,60]
[314257192,1708119165604,-639.89,0.0005315,60]
[314257193,1708119165613,-500.0,0.0005315,60]
[314257194,1708119165623,-510.16,0.0005315,60]
[314257195,1708119165632,-500.0,0.0005315,60]
[314257196,1708119165641,-580.88,0.0005315,60]
[314257197,1708119165651,-500.0,0.0005315,60]
[314257198,1708119165660,-500.0,0.0005315,60]
[314257199,1708119165670,-555.94,0.0005315,60]
[314257200,1708119165679,-572.13,0.0005315,60]
[314257201,1708119165688,-570.46,0.0005315,60]
[314257202,1708119165698,-551.75,0.0005315,60]
[314257203,1708119165708,-500.0,0.0005315,60]